bitfinex-derivatives/quotes_BNBF0:USTF0_20230831
["timestamp","ask_amount","ask_price","bid_price","bid_amount"]
[1693526162935,0.07557638,216.64,215.92,0.16989973]
[1693526163131,0.07557638,216.64,215.85,0.16989973]
[1693526163334,0.07557638,216.64,215.86,0.16989973]
[1693526163538,0.07557638,216.64,215.87,0.16989973]
[1693526163730,0.07557638,216.64,215.88,0.16989973]
[1693526163930,0.07557638,216.64,215.89,0.16989973]
[1693526164132,0.07557638,216.64,215.85,0.16989973]
[1693526164439,0.07557638,216.64,215.86,0.16989973]
[1693526164639,0.07557638,216.64,215.87,0.16989973]
[1693526164838,0.07557638,216.64,215.88,0.16989973]
[1693526165034,0.07557638,216.64,215.89,0.16989973]
[1693526165239,0.07557638,216.64,215.9,0.16989973]
[1693526165432,0.07557638,216.64,215.85,0.16989973]
[1693526165637,0.07557638,216.64,215.86,0.16989973]
[1693526165839,0.07557638,216.64,215.85,0.16989973]
[1693526166136,0.07557638,216.64,215.86,0.16989973]
[1693526166339,0.07557638,216.64,215.87,0.16989973]
[1693526166543,0.07557638,216.64,215.88,0.16989973]
[1693526166738,0.07557638,216.64,215.84,5.0467595]
[1693526166739,0.07557638,216.64,215.89,0.16989973]
[1693526167039,0.07557638,216.64,215.9,0.16989973]
[1693526167241,0.07557638,216.64,215.85,0.16989973]
[1693526167439,0.07557638,216.64,215.86,0.16989973]
[1693526167639,0.07557638,216.64,215.85,0.16989973]
[1693526167831,0.07557638,216.64,215.86,0.16989973]
[1693526168036,0.07557638,216.64,215.87,0.16989973]
[1693526168238,0.07557638,216.64,215.88,0.16989973]
[1693526168438,0.07557638,216.64,215.89,0.16989973]
[1693526168640,0.07557638,216.64,215.9,0.16989973]
[1693526168840,0.07557638,216.64,215.85,0.16989973]
[1693526169041,0.07557638,216.64,215.86,0.16989973]
[1693526171644,0.07557638,216.63,215.86,0.16989973]
[1693526172241,0.07557638,216.64,215.86,0.16989973]
[1693526172840,0.07557638,216.64,215.86,5.21665923]
[1693526173039,0.07557638,216.64,215.87,0.16989973]
[1693526174646,0.07557638,216.63,215.87,0.16989973]
[1693526181149,0.07557638,216.62,215.87,0.16989973]
[1693526181352,0.07557638,216.62,215.88,0.16989973]
[1693526181547,0.07557638,216.62,215.89,0.16989973]
[1693526181746,0.07557638,216.62,215.9,0.16989973]
[1693526181954,0.07557638,216.62,215.91,0.16989973]
[1693526182151,0.07557638,216.62,215.92,0.16989973]
[1693526182348,0.07557638,216.62,215.93,0.16989973]
[1693526182549,0.07557638,216.62,215.94,0.16989973]
[1693526182855,0.07557638,216.62,215.95,0.16989973]
[1693526183050,0.07557638,216.62,215.96,0.16989973]
[1693526183251,0.07557638,216.62,215.97,0.16989973]
[1693526183455,0.07557638,216.62,215.98,0.16989973]
[1693526183754,0.07557638,216.62,215.99,0.16989973]
[1693526183955,0.07557638,216.62,216.0,0.16989973]
[1693526184156,0.07557638,216.62,215.86,0.16989973]
[1693526193559,0.07557638,216.63,215.86,0.16989973]
[1693526208779,0.07557638,216.62,215.86,0.16989973]
[1693526214575,0.07557638,216.68,215.86,0.16989973]
[1693526214874,0.07557638,216.72,215.86,0.16989973]
[1693526215673,0.07557638,216.73,215.89,5.0467595]
[1693526215868,0.07557638,216.73,215.9,0.16989973]
[1693526216675,0.07557638,216.74,215.9,0.16989973]
[1693526216874,0.07557638,216.74,215.91,0.16989973]
[1693526217069,0.07557638,216.74,215.92,0.16989973]
[1693526217272,0.07557638,216.74,215.89,0.16989973]
[1693526217473,0.07557638,216.74,215.9,0.16989973]
[1693526217675,0.07557638,216.74,215.91,0.16989973]
[1693526217874,0.07557638,216.74,215.88,0.16989973]
[1693526218068,0.07557638,216.74,215.89,0.16989973]
[1693526218273,0.07557638,216.74,215.9,0.16989973]
[1693526218469,0.07557638,216.74,215.88,0.16989973]
[1693526218676,0.07557638,216.75,215.89,0.16989973]
[1693526218974,0.07557638,216.75,215.9,0.16989973]
[1693526219168,0.07557638,216.75,215.88,0.16989973]
[1693526219370,0.07557638,216.75,215.89,0.16989973]
[1693526219576,0.07557638,216.76,215.9,0.16989973]
[1693526219875,0.07557638,216.76,215.91,0.16989973]
[1693526220075,0.07557638,216.76,215.92,0.16989973]
[1693526220277,0.07557638,216.76,215.93,0.16989973]
[1693526220575,0.07557638,216.76,215.86,5.0467595]
[1693526220576,0.07557638,216.76,215.94,0.16989973]
[1693526220775,0.07557638,216.76,215.95,0.16989973]
[1693526220969,0.07557638,216.76,215.96,0.16989973]
[1693526221174,0.07557638,216.76,215.86,5.0467595]
[1693526221175,0.07557638,216.76,215.87,0.16989973]
[1693526221368,0.07557638,216.76,215.88,0.16989973]
[1693526221572,0.07557638,216.76,215.89,0.16989973]
[1693526221776,0.07557638,216.76,215.9,0.16989973]
[1693526221974,0.07557638,216.76,215.87,0.16989973]
[1693526222275,0.07557638,216.76,215.88,0.16989973]
[1693526222574,0.07557638,216.76,215.89,0.16989973]
[1693526222768,0.07557638,216.76,215.86,0.16989973]
[1693526222972,0.07557638,216.76,215.87,0.16989973]
[1693526223171,0.07557638,216.76,215.86,0.16989973]
[1693526223370,0.07557638,216.76,215.87,0.16989973]
[1693526223574,0.07557638,216.76,215.86,0.16989973]
[1693526223775,0.07557638,216.76,215.87,0.16989973]
[1693526223970,0.07557638,216.76,215.86,0.16989973]
[1693526224273,0.07557638,216.76,215.87,0.16989973]
[1693526224472,0.07557638,216.76,215.88,0.16989973]
[1693526224672,0.07557638,216.76,215.89,0.16989973]
[1693526224975,0.07557638,216.76,215.9,0.16989973]
[1693526225274,0.07557638,216.76,215.91,0.16989973]
[1693526225468,0.07557638,216.76,215.92,0.16989973]
[1693526225672,0.07557638,216.77,215.93,0.16989973]
[1693526225970,0.07557638,216.77,215.94,0.16989973]
[1693526226174,0.07557638,216.77,215.85,0.16989973]
[1693526226374,0.07557638,216.77,215.86,0.16989973]
[1693526226576,0.07557638,216.77,215.85,0.16989973]
[1693526226777,0.07557638,216.77,215.86,0.16989973]
[1693526226969,0.07557638,216.77,215.87,0.16989973]
[1693526227174,0.07557638,216.77,215.88,0.16989973]
[1693526227472,0.07557638,216.77,215.89,0.16989973]
[1693526227671,0.07557638,216.77,215.85,0.16989973]
[1693526227870,0.07557638,216.77,215.86,0.16989973]
[1693526228074,0.07557638,216.77,215.85,0.16989973]
[1693526228371,0.07557638,216.77,215.86,0.16989973]
[1693526228576,0.07557638,216.77,215.87,0.16989973]
[1693526228775,0.07557638,216.77,215.88,0.16989973]
[1693526228976,0.07557638,216.77,215.89,0.16989973]
[1693526229178,0.07557638,216.77,215.84,0.16989973]
[1693526229377,0.07557638,216.77,215.85,0.16989973]
[1693526229578,0.07557638,216.77,215.84,0.16989973]
[1693526229778,0.07557638,216.77,215.85,0.16989973]
[1693526229974,0.07557638,216.76,215.86,0.16989973]
[1693526230174,0.07557638,216.76,215.87,0.16989973]
[1693526230377,0.07557638,216.76,215.88,0.16989973]
[1693526230577,0.07557638,216.76,215.84,0.16989973]
[1693526230778,0.07557638,216.76,215.85,0.16989973]
[1693526230978,0.07557638,216.76,215.84,0.16989973]
[1693526231176,0.07557638,216.76,215.85,0.16989973]
[1693526231378,0.07557638,216.76,215.86,0.16989973]
[1693526231575,0.07557638,216.76,215.87,0.16989973]
[1693526231781,0.07557638,216.76,215.88,0.16989973]
[1693526231981,0.07557638,216.76,215.83,0.16989973]
[1693526232178,0.07557638,216.76,215.84,0.16989973]
[1693526232486,0.07557638,216.76,215.85,0.16989973]
[1693526232680,0.07557638,216.75,215.86,0.16989973]
[1693526232878,0.07557638,216.75,215.82,0.16989973]
[1693526233081,0.07557638,216.75,215.83,0.16989973]
[1693526233280,0.07557638,216.75,215.84,0.16989973]
[1693526233485,0.07557638,216.75,215.85,0.16989973]
[1693526233685,0.07557638,216.75,215.86,0.16989973]
[1693526233984,0.07557638,216.75,215.87,0.16989973]
[1693526234185,0.07557638,216.75,215.82,0.16989973]
[1693526234386,0.07557638,216.75,215.83,0.16989973]
[1693526234582,0.07557638,216.75,215.84,0.16989973]
[1693526234788,0.07557638,216.75,215.85,0.16989973]
[1693526234990,0.07557638,216.75,215.86,0.16989973]
[1693526235286,0.07557638,216.75,215.87,0.16989973]
[1693526235486,0.07557638,216.75,215.82,0.16989973]
[1693526235682,0.07557638,216.74,215.83,0.16989973]
[1693526235884,0.07557638,216.74,215.84,0.16989973]
[1693526236185,0.07557638,216.74,215.85,0.16989973]
[1693526236386,0.07557638,216.74,215.82,0.16989973]
[1693526236686,0.07557638,216.74,215.83,0.16989973]
[1693526236887,0.07557638,216.74,215.82,0.16989973]
[1693526237081,0.07557638,216.74,215.83,0.16989973]
[1693526237281,0.07557638,216.74,215.84,0.16989973]
[1693526237587,0.07557638,216.74,215.85,0.16989973]
[1693526237885,0.07557638,216.74,215.86,0.16989973]
[1693526238086,0.07557638,216.74,215.81,5.0467595]
[1693526238087,0.07557638,216.74,215.82,0.16989973]
[1693526238688,0.07557638,216.74,215.82,5.21665923]
[1693526238887,0.07557638,216.74,215.83,0.16989973]
[1693526240283,0.07557638,216.73,215.83,0.16989973]
[1693526241991,0.07557638,216.73,215.83,5.21665923]
[1693526242190,0.07557638,216.73,215.84,0.16989973]
[1693526242490,0.07557638,216.69,215.84,0.16989973]
[1693526242691,0.07557638,216.68,215.84,0.16989973]
[1693526243285,0.07557638,216.68,215.8,0.16989973]
[1693526243489,0.07557638,216.68,215.81,0.16989973]
[1693526243687,0.07557638,216.68,215.79,5.21665923]
[1693526243885,0.07557638,216.68,215.8,0.16989973]
[1693526244390,0.07557638,216.68,215.81,0.16989973]
[1693526244590,0.07557638,216.68,215.82,0.16989973]
[1693526244791,0.07557638,216.68,215.83,0.16989973]
[1693526244985,0.07557638,216.68,215.84,0.16989973]
[1693526245189,0.07557638,216.68,215.85,0.16989973]
[1693526245389,0.07557638,216.68,215.86,0.16989973]
[1693526245589,0.07557638,216.67,215.8,0.16989973]
[1693526245790,0.07557638,216.67,215.81,0.16989973]
[1693526245987,0.07557638,216.67,215.82,0.16989973]
[1693526246187,0.07557638,216.67,215.83,0.16989973]
[1693526246390,0.07557638,216.68,215.8,0.16989973]
[1693526246590,0.07557638,216.67,215.81,0.16989973]
[1693526246787,0.07557638,216.67,215.82,0.16989973]
[1693526246987,0.07557638,216.67,215.79,5.0467595]
[1693526246988,0.07557638,216.67,215.83,0.16989973]
[1693526247192,0.07557638,216.67,215.84,0.16989973]
[1693526247392,0.07557638,216.67,215.8,0.16989973]
[1693526247593,0.07557638,216.67,215.81,0.16989973]
[1693526247794,0.07557638,216.67,215.8,0.16989973]
[1693526247996,0.07557638,216.67,215.81,0.16989973]
[1693526248295,0.07557638,216.67,215.82,0.16989973]
[1693526248489,0.07557638,216.67,215.8,0.16989973]
[1693526248695,0.07557638,216.66,215.81,0.16989973]
[1693526248894,0.07557638,216.66,215.8,0.16989973]
[1693526249092,0.07557638,216.66,215.81,0.16989973]
[1693526249290,0.07557638,216.67,215.82,0.16989973]
[1693526249492,0.07557638,216.67,215.79,5.0467595]
[1693526249493,0.07557638,216.67,215.83,0.16989973]
[1693526249695,0.07557638,216.67,215.84,0.16989973]
[1693526249895,0.07557638,216.67,215.8,0.16989973]
[1693526250097,0.07557638,216.67,215.81,0.16989973]
[1693526250292,0.07557638,216.67,215.82,0.16989973]
[1693526250496,0.07557638,216.67,215.83,0.16989973]
[1693526250695,0.07557638,216.67,215.79,0.16989973]
[1693526250893,0.07557638,216.67,215.8,0.16989973]
[1693526251092,0.07557638,216.67,215.81,0.16989973]
[1693526251291,0.07557638,216.67,215.82,0.16989973]
[1693526251495,0.07557638,216.67,215.83,0.16989973]
[1693526251692,0.07557638,216.67,215.79,0.16989973]
[1693526251991,0.07557638,216.67,215.8,0.16989973]
[1693526252193,0.07557638,216.67,215.81,0.16989973]
[1693526252388,0.07557638,216.67,215.82,0.16989973]
[1693526252594,0.07557638,216.67,215.83,0.16989973]
[1693526252797,0.07557638,216.67,215.79,0.16989973]
[1693526252998,0.07557638,216.67,215.8,0.16989973]
[1693526253198,0.07557638,216.68,215.81,0.16989973]
[1693526253392,0.07557638,216.68,215.82,0.16989973]
[1693526253597,0.07557638,216.68,215.79,0.16989973]
[1693526253794,0.07557638,216.68,215.8,0.16989973]
[1693526253996,0.07557638,216.68,215.81,0.16989973]
[1693526254197,0.07557638,216.68,215.82,0.16989973]
[1693526254398,0.07557638,216.68,215.83,0.16989973]
[1693526254598,0.07557638,216.68,215.79,0.16989973]
[1693526254797,0.07557638,216.68,215.8,0.16989973]
[1693526254994,0.07557638,216.68,215.81,0.16989973]
[1693526255198,0.07557638,216.68,215.78,5.0467595]
[1693526255199,0.07557638,216.68,215.82,0.16989973]
[1693526255394,0.07557638,216.68,215.79,0.16989973]
[1693526255599,0.07557638,216.68,215.8,0.16989973]
[1693526255795,0.07557638,216.68,215.81,0.16989973]
[1693526255995,0.07557638,216.68,215.78,0.16989973]
[1693526263608,0.07557638,216.68,215.78,5.21665923]
[1693526263808,0.07557638,216.68,215.79,0.16989973]
[1693526264006,0.07557638,216.67,215.79,0.16989973]
[1693526264202,0.07557638,216.67,215.77,5.0467595]
[1693526264203,0.07557638,216.67,215.78,0.16989973]
[1693526264408,0.07557638,216.67,215.79,0.16989973]
[1693526264710,0.07557638,216.67,215.8,0.16989973]
[1693526264909,0.07557638,216.67,215.78,0.16989973]
[1693526265108,0.07557638,216.67,215.79,0.16989973]
[1693526265311,0.07557638,216.67,215.8,0.16989973]
[1693526265606,0.07557638,216.67,215.81,0.16989973]
[1693526265810,0.07557638,216.67,215.82,0.16989973]
[1693526266007,0.07557638,216.67,215.83,0.16989973]
[1693526266207,0.07557638,216.67,215.78,5.21665923]
[1693526266410,0.07557638,216.67,215.79,0.16989973]
[1693526267311,0.07557638,216.66,215.79,0.16989973]
[1693526271314,0.07557638,216.65,215.79,0.16989973]
[1693526273315,0.07557638,216.64,215.79,5.21665923]
[1693526273510,0.07557638,216.64,215.8,0.16989973]
[1693526275316,0.07557638,216.63,215.8,5.21665923]
[1693526275516,0.07557638,216.63,215.81,0.16989973]
[1693526276314,0.07557638,216.62,215.81,0.16989973]
[1693526276515,0.07557638,216.62,215.81,5.21665923]
[1693526276711,0.07557638,216.62,215.82,0.16989973]
[1693526277319,0.07557638,216.61,215.82,0.16989973]
[1693526277918,0.07557638,216.61,215.82,5.21665923]
[1693526278119,0.07557638,216.61,215.83,0.16989973]
[1693526280922,0.15115276,216.63,215.83,0.16989973]
[1693526280923,0.07557638,216.62,215.83,0.16989973]
[1693526282219,0.07557638,216.62,215.84,5.0467595]
[1693526282421,0.07557638,216.62,215.85,0.16989973]
[1693526288020,0.07557638,216.62,215.85,5.21665923]
[1693526288222,0.07557638,216.63,215.86,0.16989973]
[1693526308242,0.07557638,216.62,215.86,0.16989973]
[1693526308437,0.07557638,216.62,215.87,0.16989973]
[1693526308640,0.07557638,216.62,215.88,0.16989973]
[1693526308836,0.07557638,216.62,215.85,0.16989973]
[1693526309138,0.07557638,216.62,215.86,0.16989973]
[1693526309341,0.07557638,216.62,215.85,0.16989973]
[1693526309542,0.07557638,216.62,215.86,0.16989973]
[1693526309738,0.07557638,216.62,215.87,0.16989973]
[1693526310036,0.07557638,216.62,215.88,0.16989973]
[1693526310239,0.07557638,216.62,215.89,0.16989973]
[1693526310438,0.07557638,216.62,215.85,0.16989973]
[1693526310641,0.07557638,216.62,215.86,0.16989973]
[1693526310843,0.07557638,216.62,215.85,0.16989973]
[1693526311146,0.07557638,216.62,215.86,0.16989973]
[1693526311336,0.07557638,216.62,215.87,0.16989973]
[1693526311540,0.07557638,216.62,215.88,0.16989973]
[1693526311743,0.07557638,216.62,215.89,0.16989973]
[1693526311943,0.07557638,216.62,215.85,0.16989973]
[1693526312141,0.07557638,216.62,215.86,0.16989973]
[1693526312337,0.07557638,216.62,215.87,0.16989973]
[1693526312538,0.07557638,216.62,215.85,0.16989973]
[1693526312742,0.07557638,216.62,215.86,0.16989973]
[1693526312943,0.07557638,216.62,215.87,0.16989973]
[1693526313143,0.07557638,216.62,215.85,0.16989973]
[1693526313338,0.07557638,216.62,215.86,0.16989973]
[1693526313537,0.07557638,216.62,215.87,0.16989973]
[1693526313741,0.07557638,216.62,215.88,0.16989973]
[1693526313939,0.07557638,216.62,215.85,0.16989973]
[1693526314143,0.07557638,216.62,215.86,0.16989973]
[1693526314443,0.07557638,216.62,215.87,0.16989973]
[1693526314745,0.07557638,216.62,215.88,0.16989973]
[1693526315043,0.07557638,216.62,215.89,0.16989973]
[1693526315243,0.07557638,216.62,215.85,0.16989973]
[1693526315440,0.07557638,216.62,215.86,0.16989973]
[1693526315639,0.07557638,216.62,215.87,0.16989973]
[1693526315839,0.07557638,216.62,215.88,0.16989973]
[1693526316044,0.07557638,216.62,215.85,0.16989973]
[1693526316245,0.07557638,216.62,215.86,0.16989973]
[1693526316544,0.07557638,216.62,215.87,0.16989973]
[1693526316745,0.07557638,216.62,215.85,0.16989973]
[1693526316946,0.07557638,216.62,215.86,0.16989973]
[1693526317244,0.07557638,216.62,215.87,0.16989973]
[1693526317444,0.07557638,216.62,215.88,0.16989973]
[1693526317645,0.07557638,216.62,215.89,0.16989973]
[1693526317844,0.07557638,216.62,215.85,0.16989973]
[1693526318042,0.07557638,216.62,215.86,0.16989973]
[1693526318242,0.07557638,216.62,215.87,0.16989973]
[1693526318442,0.07557638,216.62,215.88,0.16989973]
[1693526318644,0.07557638,216.62,215.85,0.16989973]
[1693526318845,0.07557638,216.62,215.86,0.16989973]
[1693526319045,0.07557638,216.62,215.87,0.16989973]
[1693526319245,0.07557638,216.62,215.85,0.16989973]
[1693526319445,0.07557638,216.62,215.86,0.16989973]
[1693526319643,0.07557638,216.62,215.87,0.16989973]
[1693526319843,0.07557638,216.62,215.85,0.16989973]
[1693526320043,0.07557638,216.62,215.86,0.16989973]
[1693526320242,0.07557638,216.62,215.87,0.16989973]
[1693526320443,0.07557638,216.62,215.85,0.16989973]
[1693526320642,0.07557638,216.62,215.86,0.16989973]
[1693526320945,0.07557638,216.62,215.87,0.16989973]
[1693526321146,0.07557638,216.62,215.85,0.16989973]
[1693526321348,0.07557638,216.62,215.86,0.16989973]
[1693526321540,0.07557638,216.62,215.87,0.16989973]
[1693526321741,0.07557638,216.62,215.85,0.16989973]
[1693526321941,0.07557638,216.62,215.86,0.16989973]
[1693526322144,0.07557638,216.62,215.87,0.16989973]
[1693526322347,0.07557638,216.62,215.85,0.16989973]
[1693526322643,0.07557638,216.63,215.86,0.16989973]
[1693526322848,0.07557638,216.63,215.87,0.16989973]
[1693526323049,0.07557638,216.63,215.85,5.21665923]
[1693526323242,0.07557638,216.63,215.86,0.16989973]
[1693526323943,0.07557638,216.62,215.86,0.16989973]
[1693526328452,0.07557638,216.62,215.87,0.16989973]
[1693526328651,0.07557638,216.62,215.85,0.16989973]
[1693526328851,0.07557638,216.62,215.86,0.16989973]
[1693526329046,0.07557638,216.62,215.87,0.16989973]
[1693526329251,0.07557638,216.62,215.88,0.16989973]
[1693526329451,0.07557638,216.62,215.89,0.16989973]
[1693526329647,0.07557638,216.62,215.85,0.16989973]
[1693526329846,0.07557638,216.62,215.86,0.16989973]
[1693526330050,0.07557638,216.62,215.87,0.16989973]
[1693526330251,0.07557638,216.62,215.85,0.16989973]
[1693526330452,0.07557638,216.62,215.86,0.16989973]
[1693526330646,0.07557638,216.62,215.87,0.16989973]
[1693526330846,0.07557638,216.62,215.85,0.16989973]
[1693526331049,0.07557638,216.62,215.86,0.16989973]
[1693526331350,0.07557638,216.62,215.87,0.16989973]
[1693526331552,0.07557638,216.62,215.85,5.0467595]
[1693526331553,0.07557638,216.62,215.88,0.16989973]
[1693526331752,0.07557638,216.62,215.89,0.16989973]
[1693526331951,0.07557638,216.62,215.86,0.16989973]
[1693526332151,0.07557638,216.62,215.87,0.16989973]
[1693526332352,0.07557638,216.62,215.86,0.16989973]
[1693526332545,0.07557638,216.62,215.87,0.16989973]
[1693526332750,0.07557638,216.62,215.86,0.16989973]
[1693526333053,0.07557638,216.62,215.87,0.16989973]
[1693526333248,0.07557638,216.62,215.86,0.16989973]
[1693526333552,0.07557638,216.62,215.87,0.16989973]
[1693526333851,0.07557638,216.62,215.88,0.16989973]
[1693526334051,0.07557638,216.62,215.89,0.16989973]
[1693526334248,0.07557638,216.62,215.86,0.16989973]
[1693526334445,0.07557638,216.62,215.87,0.16989973]
[1693526334750,0.07557638,216.62,215.88,0.16989973]
[1693526334952,0.07557638,216.62,215.89,0.16989973]
[1693526335150,0.07557638,216.62,215.86,0.16989973]
[1693526335352,0.07557638,216.62,215.87,0.16989973]
[1693526335553,0.07557638,216.62,215.86,0.16989973]
[1693526335753,0.07557638,216.62,215.87,0.16989973]
[1693526335953,0.07557638,216.62,215.85,5.0467595]
[1693526335954,0.07557638,216.62,215.88,0.16989973]
[1693526336154,0.07557638,216.62,215.89,0.16989973]
[1693526336455,0.07557638,216.62,215.9,0.16989973]
[1693526336650,0.07557638,216.62,215.91,0.16989973]
[1693526336855,0.07557638,216.62,215.92,0.16989973]
[1693526337052,0.07557638,216.62,215.86,0.16989973]
[1693526337252,0.07557638,216.62,215.87,0.16989973]
[1693526337452,0.07557638,216.62,215.88,0.16989973]
[1693526337653,0.07557638,216.62,215.89,0.16989973]
[1693526337853,0.07557638,216.62,215.86,0.16989973]
[1693526338047,0.07557638,216.62,215.87,0.16989973]
[1693526338248,0.07557638,216.62,215.88,0.16989973]
[1693526338455,0.07557638,216.62,215.86,0.16989973]
[1693526338655,0.07557638,216.62,215.87,0.16989973]
[1693526338955,0.07557638,216.62,215.88,0.16989973]
[1693526339156,0.07557638,216.62,215.86,0.16989973]
[1693526339355,0.07557638,216.63,215.87,0.16989973]
[1693526339553,0.07557638,216.63,215.88,0.16989973]
[1693526339755,0.07557638,216.63,215.86,0.16989973]
[1693526339951,0.07557638,216.63,215.87,0.16989973]
[1693526340150,0.07557638,216.63,215.88,0.16989973]
[1693526340355,0.07557638,216.63,215.89,0.16989973]
[1693526340554,0.07557638,216.63,215.86,0.16989973]
[1693526340754,0.07557638,216.63,215.85,5.0467595]
[1693526340755,0.07557638,216.63,215.87,0.16989973]
[1693526340955,0.07557638,216.63,215.88,0.16989973]
[1693526341155,0.07557638,216.63,215.86,0.16989973]
[1693526341355,0.07557638,216.63,215.87,0.16989973]
[1693526341655,0.07557638,216.63,215.88,0.16989973]
[1693526341851,0.07557638,216.63,215.86,0.16989973]
[1693526342054,0.07557638,216.63,215.87,0.16989973]
[1693526342254,0.07557638,216.63,215.88,0.16989973]
[1693526342555,0.07557638,216.63,215.89,0.16989973]
[1693526342756,0.07557638,216.63,215.9,0.16989973]
[1693526342957,0.07557638,216.63,215.86,0.16989973]
[1693526343153,0.07557638,216.63,215.85,5.0467595]
[1693526343154,0.07557638,216.63,215.87,0.16989973]
[1693526343351,0.07557638,216.63,215.86,5.21665923]
[1693526343553,0.07557638,216.63,215.87,0.16989973]
[1693526344559,0.07557638,216.63,215.88,0.16989973]
[1693526344759,0.07557638,216.63,215.86,0.16989973]
[1693526344958,0.07557638,216.63,215.87,0.16989973]
[1693526345158,0.07557638,216.63,215.88,0.16989973]
[1693526345352,0.07557638,216.63,215.89,0.16989973]
[1693526345554,0.07557638,216.63,215.9,0.16989973]
[1693526345861,0.07557638,216.63,215.91,0.16989973]
[1693526346055,0.07557638,216.63,215.86,0.16989973]
[1693526346358,0.07557638,216.63,215.87,0.16989973]
[1693526346558,0.07557638,216.63,215.88,0.16989973]
[1693526346858,0.07557638,216.63,215.89,0.16989973]
[1693526347057,0.07557638,216.63,215.9,0.16989973]
[1693526347258,0.07557638,216.63,215.86,0.16989973]
[1693526347556,0.07557638,216.63,215.87,0.16989973]
[1693526347759,0.07557638,216.63,215.86,0.16989973]
[1693526347959,0.07557638,216.63,215.87,0.16989973]
[1693526348153,0.07557638,216.63,215.86,0.16989973]
[1693526348353,0.07557638,216.63,215.87,0.16989973]
[1693526348550,0.07557638,216.63,215.88,0.16989973]
[1693526348753,0.07557638,216.63,215.89,0.16989973]
[1693526348954,0.07557638,216.63,215.9,0.16989973]
[1693526349156,0.07557638,216.63,215.91,0.16989973]
[1693526349358,0.07557638,216.63,215.92,0.16989973]
[1693526349558,0.07557638,216.63,215.86,0.16989973]
[1693526349756,0.07557638,216.63,215.87,0.16989973]
[1693526350560,0.07557638,216.63,215.85,5.0467595]
[1693526350561,0.07557638,216.63,215.86,0.16989973]
[1693526350761,0.07557638,216.63,215.87,0.16989973]
[1693526351063,0.07557638,216.63,215.88,0.16989973]
[1693526351362,0.07557638,216.63,215.89,0.16989973]
[1693526351564,0.07557638,216.63,215.9,0.16989973]
[1693526351862,0.07557638,216.63,215.91,0.16989973]
[1693526352056,0.07557638,216.63,215.85,5.0467595]
[1693526352057,0.07557638,216.63,215.86,0.16989973]
[1693526352260,0.07557638,216.63,215.87,0.16989973]
[1693526352461,0.07557638,216.63,215.86,0.16989973]
[1693526352661,0.07557638,216.63,215.87,0.16989973]
[1693526352861,0.07557638,216.63,215.86,0.16989973]
[1693526353062,0.07557638,216.63,215.87,0.16989973]
[1693526353363,0.07557638,216.63,215.88,0.16989973]
[1693526353558,0.07557638,216.63,215.85,5.0467595]
[1693526353559,0.07557638,216.63,215.86,0.16989973]
[1693526353763,0.07557638,216.63,215.87,0.16989973]
[1693526353963,0.07557638,216.63,215.86,0.16989973]
[1693526354166,0.07557638,216.62,215.87,0.16989973]
[1693526354465,0.07557638,216.62,215.88,0.16989973]
[1693526354663,0.07557638,216.62,215.86,0.16989973]
[1693526354857,0.07557638,216.62,215.87,0.16989973]
[1693526355058,0.07557638,216.62,215.86,0.16989973]
[1693526355259,0.07557638,216.62,215.87,0.16989973]
[1693526355459,0.07557638,216.62,215.86,0.16989973]
[1693526355764,0.07557638,216.62,215.87,0.16989973]
[1693526356063,0.07557638,216.62,215.88,0.16989973]
[1693526356263,0.07557638,216.62,215.86,0.16989973]
[1693526356463,0.07557638,216.62,215.87,0.16989973]
[1693526356659,0.07557638,216.62,215.86,0.16989973]
[1693526356864,0.07557638,216.62,215.87,0.16989973]
[1693526357165,0.07557638,216.62,215.88,0.16989973]
[1693526357360,0.07557638,216.62,215.86,0.16989973]
[1693526357566,0.07557638,216.62,215.87,0.16989973]
[1693526357866,0.07557638,216.62,215.88,0.16989973]
[1693526358166,0.07557638,216.62,215.89,0.16989973]
[1693526358368,0.07557638,216.62,215.86,0.16989973]
[1693526358567,0.07557638,216.62,215.87,0.16989973]
[1693526358761,0.07557638,216.62,215.88,0.16989973]
[1693526358964,0.07557638,216.62,215.89,0.16989973]
[1693526359262,0.07557638,216.62,215.9,0.16989973]
[1693526359467,0.07557638,216.62,215.86,0.16989973]
[1693526359668,0.07557638,216.62,215.87,0.16989973]
[1693526361070,0.07557638,216.63,215.87,0.16989973]
[1693526363671,0.07557638,216.62,215.87,0.16989973]
[1693526378585,0.07572942,216.62,215.86,5.0478298]
[1693526378784,0.07572942,216.63,215.87,0.16989973]
[1693526379385,0.07572942,216.62,215.87,0.16989973]
[1693526379582,0.07572942,216.63,215.87,0.16989973]
[1693526380083,0.07572942,216.63,215.87,5.21772953]
[1693526380280,0.07572942,216.63,215.88,0.16989973]
[1693526381384,0.07572942,216.63,215.89,0.16989973]
[1693526381579,0.07572942,216.63,215.9,0.16989973]
[1693526381780,0.07572942,216.63,215.87,0.16989973]
[1693526382082,0.07572942,216.63,215.88,0.16989973]
[1693526382283,0.07572942,216.63,215.87,0.16989973]
[1693526382477,0.07572942,216.63,215.88,0.16989973]
[1693526382681,0.07572942,216.63,215.89,0.16989973]
[1693526382881,0.07572942,216.63,215.9,0.16989973]
[1693526383184,0.07572942,216.63,215.91,0.16989973]
[1693526383383,0.07572942,216.63,215.92,0.16989973]
[1693526383684,0.07572942,216.63,215.93,0.16989973]